[Event "FIDE WYCC 2016 U18 boys"]
[Site "Khanty Mansiysk"]
[Date "2016.09.22"]
[Round "1.2"]
[White "Meunier, Clement"]
[Black "Petrosyan, Manuel"]
[Result "0-1"]
[ECO "C00"]
[WhiteElo "2290"]
[BlackElo "2530"]
[Annotator "Reinhold Goldau"]
[PlyCount "94"]
[EventDate "2016.09.??"]
[EventType "swiss"]
[EventRounds "11"]
[EventCountry "RUS"]
[SourceTitle "Youth Database"]
[Source "CBase R.Goldau"]
[SourceDate "2000.03.01"]
[TimeControl "40/5400+30:1800+30"]

1. e4 {[%emt 0:00:00]} c5 {[%emt 0:00:34]} 2. Nf3 {[%emt 0:00:00]} e6 {[%emt 0:
00:07]} 3. g3 {[%emt 0:00:36]} Nc6 {[%emt 0:02:33]} 4. Bg2 {[%emt 0:00:35]} Nf6
{[%emt 0:00:11]} 5. Qe2 {[%emt 0:00:11]} Be7 {[%emt 0:01:25]} 6. e5 {[%emt 0:
01:14]} Nd5 {[%emt 0:05:24]} 7. Nc3 {[%emt 0:01:47]} Nc7 {[%emt 0:10:17]} 8.
Ne4 {[%emt 0:06:56]} d5 {[%emt 0:01:56]} 9. exd6 {[%emt 0:05:07]} Bxd6 {
[%emt 0:00:15]} 10. Nxd6+ {[%emt 0:06:07]} Qxd6 {[%emt 0:00:10]} 11. d3 {
[%emt 0:00:13]} O-O {[%emt 0:03:47]} 12. O-O {[%emt 0:02:06]} e5 {[%emt 0:12:
14]} 13. Nd2 {[%emt 0:07:47]} Be6 {[%emt 0:07:17]} 14. Nc4 {[%emt 0:06:55]}
Bxc4 {[%emt 0:00:48]} 15. dxc4 {[%emt 0:00:05]} Nd4 {[%emt 0:02:19]} 16. Qd3 {
[%emt 0:00:44]} Qg6 {[%emt 0:01:37]} 17. Qxg6 {[%emt 0:05:16]} hxg6 {[%emt 0:
00:07]} 18. c3 {[%emt 0:00:05]} Ne2+ {[%emt 0:00:14]} 19. Kh1 {[%emt 0:00:05]}
Nxc1 {[%emt 0:00:07]} 20. Raxc1 {[%emt 0:00:04]} Rad8 {[%emt 0:00:15]} 21. Rcd1
{[%emt 0:01:06]} g5 {[%emt 0:02:25]} 22. Rfe1 {[%emt 0:02:18]} b6 {[%emt 0:00:
58]} 23. Bf3 {[%emt 0:01:41]} f6 {[%emt 0:01:27]} 24. Kg2 {[%emt 0:04:11]} Kf7
{[%emt 0:01:25]} 25. Rxd8 {[%emt 0:03:17]} Rxd8 {[%emt 0:00:14]} 26. Rd1 {
[%emt 0:00:02]} Rxd1 {[%emt 0:01:27]} 27. Bxd1 {[%emt 0:00:05]} f5 {[%emt 0:02:
11]} 28. f3 {[%emt 0:03:49]} Ne8 {[%emt 0:01:49]} 29. Kf2 {[%emt 0:05:03]} Nd6
{[%emt 0:01:08]} 30. a4 {[%emt 0:03:06]} Kf6 {[%emt 0:03:29]} 31. b3 {[%emt 0:
08:40]} e4 {[%emt 0:04:04]} 32. h3 {[%emt 0:11:34]} exf3 {[%emt 0:03:31]} 33.
Bxf3 {[%emt 0:02:33]} Ke5 {[%emt 0:00:16]} 34. Ke3 {[%emt 0:00:23]} f4+ {
[%emt 0:00:47]} 35. gxf4+ {[%emt 0:01:17]} gxf4+ {[%emt 0:00:06]} 36. Kd3 {
[%emt 0:00:23]} Nf7 {[%emt 0:01:48]} 37. Bg4 {[%emt 0:01:30]} a5 {[%emt 0:00:
45]} 38. Bh5 {[%emt 0:05:23]} Ng5 {[%emt 0:00:46]} 39. Bg4 {[%emt 0:00:17]} Ne4
{[%emt 0:00:10]} 40. Bc8 {[%emt 0:00:00]} f3 {[%emt 0:00:00]} 41. Ke3 {[%emt 0:
05:00]} f2 {[%emt 0:03:53]} 42. Ke2 {[%emt 0:00:09]} Kf4 {[%emt 0:00:15]} 43.
Bb7 {[%emt 0:00:57]} Nd6 {[%emt 0:00:24]} 44. Bg2 {[%emt 0:01:15]} Kg3 {
[%emt 0:00:07]} 45. Bf1 {[%emt 0:00:17]} Nf5 {[%emt 0:01:27]} 46. h4 {[%emt 0:
01:47]} Nxh4 {[%emt 0:00:18]} 47. Ke3 {[%emt 0:00:04]} Nf3 {[%emt 0:00:27] Kd4}
0-1

[Event "FIDE WYCC 2016 U18 boys"]
[Site "Khanty Mansiysk"]
[Date "2016.09.22"]
[Round "1.3"]
[White "Kollars, Dmitrij"]
[Black "Kandil, Adham"]
[Result "1-0"]
[ECO "B94"]
[WhiteElo "2491"]
[BlackElo "2277"]
[Annotator "Reinhold Goldau"]
[PlyCount "87"]
[EventDate "2016.09.??"]
[EventType "swiss"]
[EventRounds "11"]
[EventCountry "RUS"]
[SourceTitle "Youth Database"]
[Source "CBase R.Goldau"]
[SourceDate "2000.03.01"]
[TimeControl "40/5400+30:1800+30"]

1. e4 {[%emt 0:00:00]} c5 {[%emt 0:00:00]} 2. Nf3 {[%emt 0:00:00]} d6 {[%emt 0:
00:00]} 3. d4 {[%emt 0:00:00]} cxd4 {[%emt 0:00:11]} 4. Nxd4 {[%emt 0:00:09]}
Nf6 {[%emt 0:00:15]} 5. Nc3 {[%emt 0:00:12]} a6 {[%emt 0:00:15]} 6. Bg5 {
[%emt 0:00:51]} Nbd7 {[%emt 0:00:12]} 7. Qe2 {[%emt 0:00:38]} e6 {[%emt 0:01:
32]} 8. O-O-O {[%emt 0:01:06]} Be7 {[%emt 0:00:46]} 9. f4 {[%emt 0:00:37]} h6 {
[%emt 0:03:59]} 10. Bh4 {[%emt 0:02:17]} Qc7 {[%emt 0:01:31]} 11. g4 {[%emt 0:
00:43]} g5 {[%emt 0:06:53]} 12. fxg5 {[%emt 0:02:47]} Nh7 {[%emt 0:04:35]} 13.
Bg3 {[%emt 0:05:10]} hxg5 {[%emt 0:00:34]} 14. h4 {[%emt 0:07:06]} Ne5 {
[%emt 0:02:44]} 15. hxg5 {[%emt 0:08:02]} Bxg5+ {[%emt 0:00:43]} 16. Kb1 {
[%emt 0:00:10]} Bd7 {[%emt 0:00:29]} 17. Nf3 {[%emt 0:04:44]} Bf6 {[%emt 0:13:
59]} 18. Nxe5 {[%emt 0:08:14]} dxe5 {[%emt 0:00:47]} 19. Qf2 {[%emt 0:03:55]}
Bg7 {[%emt 0:17:15]} 20. Be2 {[%emt 0:14:14]} f6 {[%emt 0:05:59]} 21. Rd3 {
[%emt 0:02:58]} Ng5 {[%emt 0:08:56]} 22. Rxh8+ {[%emt 0:05:37]} Bxh8 {[%emt 0:
00:13]} 23. Bh4 {[%emt 0:00:44]} O-O-O {[%emt 0:06:04]} 24. Bxg5 {[%emt 0:01:
20]} fxg5 {[%emt 0:00:06]} 25. Qf7 {[%emt 0:00:55]} Re8 {[%emt 0:04:38]} 26.
Qg6 {[%emt 0:04:16]} Bc6 {[%emt 0:07:09]} 27. Qxg5 {[%emt 0:01:04]} Bg7 {
[%emt 0:00:29]} 28. Rh3 {[%emt 0:02:59]} Bf8 {[%emt 0:05:40]} 29. Bc4 {[%emt 0:
03:36]} Bb4 {[%emt 0:01:12]} 30. a3 {[%emt 0:01:40]} Bc5 {[%emt 0:01:04]} 31.
Qf6 {[%emt 0:03:28]} Bd7 {[%emt 0:04:11]} 32. Rh8 {[%emt 0:01:27]} Rxh8 {
[%emt 0:00:26]} 33. Qxh8+ {[%emt 0:00:05]} Qd8 {[%emt 0:00:02]} 34. Qxe5 {
[%emt 0:00:26]} Qb6 {[%emt 0:00:36]} 35. Bxe6 {[%emt 0:02:20]} Bxe6 {[%emt 0:
02:15]} 36. Na4 {[%emt 0:00:05]} Qd6 {[%emt 0:00:29]} 37. Qxc5+ {[%emt 0:00:06]
} Qxc5 {[%emt 0:00:05]} 38. Nxc5 {[%emt 0:00:04]} Bxg4 {[%emt 0:00:06]} 39. Kc1
{[%emt 0:01:24]} Bf3 {[%emt 0:00:45]} 40. Kd2 {[%emt 0:00:00]} b6 {[%emt 0:00:
00]} 41. Ke3 {[%emt 0:03:23]} Bd1 {[%emt 0:01:18]} 42. Nxa6 {[%emt 0:01:13]}
Bxc2 {[%emt 0:00:06]} 43. Nb4 {[%emt 0:00:10]} Bb3 {[%emt 0:00:06]} 44. Kf4 {
[%emt 0:01:40]} 1-0

[Event "FIDE WYCC 2016 U18 boys"]
[Site "Khanty Mansiysk"]
[Date "2016.09.22"]
[Round "1.4"]
[White "Rajkovic, Mladen"]
[Black "Bellahcene, Bilel"]
[Result "0-1"]
[ECO "B51"]
[WhiteElo "2275"]
[BlackElo "2483"]
[Annotator "Reinhold Goldau"]
[PlyCount "80"]
[EventDate "2016.09.??"]
[EventType "swiss"]
[EventRounds "11"]
[EventCountry "RUS"]
[SourceTitle "Youth Database"]
[Source "CBase R.Goldau"]
[SourceDate "2000.03.01"]
[TimeControl "40/5400+30:1800+30"]

1. e4 {[%emt 0:00:00]} c5 {[%emt 0:00:00]} 2. Nf3 {[%emt 0:00:00]} d6 {[%emt 0:
00:00]} 3. Bb5+ {[%emt 0:00:05]} Nd7 {[%emt 0:00:00]} 4. O-O {[%emt 0:00:53]}
Ngf6 {[%emt 0:00:10]} 5. Re1 {[%emt 0:00:06]} a6 {[%emt 0:00:12]} 6. Bd3 {
[%emt 0:00:08]} b5 {[%emt 0:00:26]} 7. c3 {[%emt 0:01:44]} Bb7 {[%emt 0:04:34]}
8. Bc2 {[%emt 0:01:16]} Qc7 {[%emt 0:02:23]} 9. a4 {[%emt 0:02:53]} Rb8 {
[%emt 0:13:09]} 10. axb5 {[%emt 0:17:01]} axb5 {[%emt 0:00:05]} 11. d4 {
[%emt 0:00:07]} e5 {[%emt 0:19:37]} 12. b4 {[%emt 0:13:01]} c4 {[%emt 0:02:35]}
13. d5 {[%emt 0:09:27]} g6 {[%emt 0:01:20]} 14. Ra5 {[%emt 0:09:42]} Ra8 {
[%emt 0:06:26]} 15. Rxb5 {[%emt 0:00:31]} Be7 {[%emt 0:02:54]} 16. Na3 {
[%emt 0:04:58]} O-O {[%emt 0:02:16]} 17. Qd2 {[%emt 0:08:25]} Rfc8 {[%emt 0:14:
42]} 18. Bb2 {[%emt 0:06:30]} Bd8 {[%emt 0:04:00]} 19. Ra1 {[%emt 0:05:41]} Qb8
{[%emt 0:01:38]} 20. Qe2 {[%emt 0:03:42]} Bb6 {[%emt 0:03:49]} 21. Nxc4 {
[%emt 0:03:05]} Rxa1+ {[%emt 0:01:38]} 22. Bxa1 {[%emt 0:00:01]} Ba6 {[%emt 0:
02:34]} 23. Nxb6 {[%emt 0:00:11]} Bxb5 {[%emt 0:05:03]} 24. Qxb5 Nxb6 {[%emt 0:
01:10]} 25. Nd2 {[%emt 0:06:54]} Qa7 {[%emt 0:02:44]} 26. Qf1 {[%emt 0:00:02]}
Qa3 {[%emt 0:01:35]} 27. Qb1 {[%emt 0:01:46]} Na4 {[%emt 0:03:38]} 28. Bxa4 {
[%emt 0:02:23]} Qxa4 {[%emt 0:00:01]} 29. h3 {[%emt 0:00:24]} Nd7 {[%emt 0:02:
09]} 30. c4 {[%emt 0:01:03]} Qa3 {[%emt 0:02:14]} 31. c5 {[%emt 0:02:39]} dxc5
{[%emt 0:01:36]} 32. bxc5 {[%emt 0:00:25]} Rxc5 {[%emt 0:00:27]} 33. Bb2 {
[%emt 0:00:34]} Qb4 {[%emt 0:00:10]} 34. Nf3 {[%emt 0:00:38]} Rb5 {[%emt 0:00:
42]} 35. Qc1 {[%emt 0:00:05]} Qxb2 {[%emt 0:00:10]} 36. Qc8+ {[%emt 0:00:08]}
Nf8 {[%emt 0:00:03]} 37. d6 {[%emt 0:00:17]} Qb3 {[%emt 0:01:33]} 38. Kh2 {
[%emt 0:00:50]} Qe6 {[%emt 0:00:21]} 39. Qc6 {[%emt 0:00:12]} Qd7 {[%emt 0:00:
09]} 40. Qc4 {[%emt 0:00:00]} Ne6 {[%emt 0:00:00]} 0-1

[Event "FIDE WYCC 2016 U18 boys"]
[Site "Khanty Mansiysk"]
[Date "2016.09.24"]
[Round "3.1"]
[White "Christiansen, Johan Sebastian"]
[Black "Petrosyan, Manuel"]
[Result "1/2-1/2"]
[ECO "D06"]
[WhiteElo "2413"]
[BlackElo "2530"]
[Annotator "Reinhold Goldau"]
[PlyCount "67"]
[EventDate "2016.09.??"]
[EventType "swiss"]
[EventRounds "11"]
[EventCountry "RUS"]
[SourceTitle "Youth Database"]
[Source "CBase R.Goldau"]
[SourceDate "2000.03.01"]
[TimeControl "40/5400+30:1800+30"]

1. Nf3 {[%emt 0:00:00]} d5 {[%emt 0:00:43]} 2. d4 {[%emt 0:00:02]} Bf5 {
[%emt 0:01:33]} 3. c4 {[%emt 0:00:06]} e6 {[%emt 0:00:08]} 4. Nc3 {[%emt 0:04:
34]} Nf6 {[%emt 0:00:31]} 5. Nh4 {[%emt 0:00:05]} Be4 {[%emt 0:07:25]} 6. f3 {
[%emt 0:05:37]} Bg6 {[%emt 0:03:21]} 7. Nxg6 {[%emt 0:06:33]} hxg6 {[%emt 0:00:
06]} 8. cxd5 {[%emt 0:06:00]} exd5 {[%emt 0:04:17]} 9. Qb3 {[%emt 0:11:20]} Nc6
{[%emt 0:10:17]} 10. Bg5 {[%emt 0:13:25]} Nxd4 {[%emt 0:17:38]} 11. Qa4+ {
[%emt 0:00:25]} Nc6 {[%emt 0:02:54]} 12. O-O-O {[%emt 0:01:47]} d4 {[%emt 0:17:
11]} 13. e3 {[%emt 0:08:44]} Bd6 {[%emt 0:01:46]} 14. exd4 {[%emt 0:05:20]} O-O
{[%emt 0:03:10]} 15. h4 {[%emt 0:05:24]} Be7 {[%emt 0:01:40]} 16. d5 {[%emt 0:
08:48]} Ne5 {[%emt 0:00:24]} 17. Qd4 {[%emt 0:01:57]} Ned7 {[%emt 0:05:35]} 18.
Bd3 {[%emt 0:01:16]} Re8 {[%emt 0:00:39]} 19. Kb1 {[%emt 0:03:04]} Nh7 {
[%emt 0:05:08]} 20. Bxe7 {[%emt 0:02:07]} Qxe7 {[%emt 0:00:05]} 21. h5 {
[%emt 0:00:27]} Qe5 {[%emt 0:01:26]} 22. Qc4 {[%emt 0:08:07]} Nb6 {[%emt 0:01:
43]} 23. Qb3 {[%emt 0:01:15]} g5 {[%emt 0:04:24]} 24. d6 {[%emt 0:00:09]} Nf6 {
[%emt 0:00:41]} 25. dxc7 {[%emt 0:01:55]} Qxc7 {[%emt 0:00:28]} 26. h6 {
[%emt 0:00:32]} gxh6 {[%emt 0:04:13]} 27. Nb5 {[%emt 0:01:05]} Qe5 {[%emt 0:02:
08]} 28. Nd6 {[%emt 0:00:29]} Re6 {[%emt 0:00:39]} 29. Nf5 {[%emt 0:00:24]} h5
{[%emt 0:00:54]} 30. Nh6+ {[%emt 0:02:18]} Kg7 {[%emt 0:00:00]} 31. Nf5+ {
[%emt 0:00:15]} Kh8 {[%emt 0:00:36]} 32. Nh6 {[%emt 0:01:01]} Kg7 {[%emt 0:02:
19]} 33. Nf5+ {[%emt 0:00:28]} Kh8 {[%emt 0:00:05]} 34. Nh6 1/2-1/2

[Event "FIDE WYCC 2016 U18 boys"]
[Site "Khanty Mansiysk"]
[Date "2016.09.24"]
[Round "3.2"]
[White "Kollars, Dmitrij"]
[Black "Mousavi, Seyed Khalil"]
[Result "1/2-1/2"]
[ECO "C18"]
[WhiteElo "2491"]
[BlackElo "2412"]
[Annotator "Reinhold Goldau"]
[PlyCount "76"]
[EventDate "2016.09.??"]
[EventType "swiss"]
[EventRounds "11"]
[EventCountry "RUS"]
[SourceTitle "Youth Database"]
[Source "CBase R.Goldau"]
[SourceDate "2000.03.01"]
[TimeControl "40/5400+30:1800+30"]

1. e4 {[%emt 0:00:00]} e6 {[%emt 0:00:00]} 2. d4 {[%emt 0:00:00]} d5 {[%emt 0:
00:00]} 3. Nc3 {[%emt 0:00:00]} Bb4 {[%emt 0:00:00]} 4. e5 {[%emt 0:00:09]} c5
{[%emt 0:00:05]} 5. a3 {[%emt 0:00:10]} Bxc3+ {[%emt 0:00:07]} 6. bxc3 {
[%emt 0:00:05]} Ne7 {[%emt 0:00:14]} 7. Qg4 {[%emt 0:00:35]} Qc7 {[%emt 0:00:
06]} 8. Bd3 {[%emt 0:00:31]} cxd4 {[%emt 0:00:39]} 9. Ne2 {[%emt 0:00:18]} dxc3
{[%emt 0:04:38]} 10. Qxg7 {[%emt 0:00:35]} Rg8 {[%emt 0:00:08]} 11. Qxh7 {
[%emt 0:00:21]} Qxe5 {[%emt 0:05:45]} 12. h4 {[%emt 0:00:43]} Nbc6 {[%emt 0:05:
53]} 13. Bf4 {[%emt 0:00:50]} Qf6 {[%emt 0:02:51]} 14. Bg5 {[%emt 0:00:36]} Qe5
{[%emt 0:05:13]} 15. f4 {[%emt 0:03:50]} Qd6 {[%emt 0:06:58]} 16. h5 {[%emt 0:
08:17]} Bd7 {[%emt 0:12:16]} 17. h6 {[%emt 0:03:29]} O-O-O {[%emt 0:00:52]} 18.
Qxf7 {[%emt 0:03:21]} Rdf8 {[%emt 0:00:39]} 19. Qh5 {[%emt 0:00:57]} Be8 {
[%emt 0:01:29]} 20. Qh3 {[%emt 0:04:53]} d4 {[%emt 0:12:10]} 21. Ng3 {[%emt 0:
10:05]} Bg6 {[%emt 0:04:57]} 22. h7 {[%emt 0:23:15]} Rh8 {[%emt 0:00:43]} 23.
Bxg6 {[%emt 0:03:34]} Nxg6 {[%emt 0:00:09]} 24. Ne4 {[%emt 0:03:10]} Qd5 {
[%emt 0:04:56]} 25. Nf6 {[%emt 0:01:17]} Nxf4 {[%emt 0:09:53]} 26. Nxd5 {
[%emt 0:02:22]} Nxh3 {[%emt 0:00:15]} 27. Rxh3 {[%emt 0:02:49]} exd5 {[%emt 0:
00:13]} 28. O-O-O {[%emt 0:01:45]} Rf5 {[%emt 0:01:57]} 29. Rh5 {[%emt 0:00:22]
} Ne5 {[%emt 0:01:48]} 30. Rdh1 {[%emt 0:06:14]} Kd7 {[%emt 0:03:32]} 31. Bf6 {
[%emt 0:04:18]} Rxf6 {[%emt 0:00:48]} 32. Rxe5 {[%emt 0:00:04]} Kd6 {[%emt 0:
00:55]} 33. Reh5 {[%emt 0:01:00]} Kc5 {[%emt 0:04:27]} 34. g4 {[%emt 0:05:16]}
Rg6 {[%emt 0:02:31]} 35. g5 {[%emt 0:00:49]} b5 {[%emt 0:02:48]} 36. Rg1 {
[%emt 0:01:43]} a5 {[%emt 0:01:08]} 37. Kb1 {[%emt 0:01:14]} b4 {[%emt 0:00:42]
} 38. Rg3 {[%emt 0:03:51]} b3 {[%emt 0:02:53]} 1/2-1/2

[Event "FIDE WYCC 2016 U18 boys"]
[Site "Khanty Mansiysk"]
[Date "2016.09.24"]
[Round "3.3"]
[White "Saiyn, Zhanat"]
[Black "Hakobyan, Aram"]
[Result "1/2-1/2"]
[ECO "E12"]
[WhiteElo "2405"]
[BlackElo "2417"]
[Annotator "Reinhold Goldau"]
[PlyCount "105"]
[EventDate "2016.09.??"]
[EventType "swiss"]
[EventRounds "11"]
[EventCountry "RUS"]
[SourceTitle "Youth Database"]
[Source "CBase R.Goldau"]
[SourceDate "2000.03.01"]
[TimeControl "40/5400+30:1800+30"]

1. d4 {[%emt 0:00:00]} e6 {[%emt 0:00:07]} 2. c4 {[%emt 0:00:00]} Nf6 {[%emt 0:
00:15]} 3. Nc3 {[%emt 0:00:00]} Bb4 {[%emt 0:00:35]} 4. e3 {[%emt 0:00:00]} b6
{[%emt 0:00:56]} 5. Bd3 {[%emt 0:00:07]} Bb7 {[%emt 0:00:22]} 6. Nf3 {[%emt 0:
00:05]} O-O {[%emt 0:00:33]} 7. O-O {[%emt 0:00:08]} c5 {[%emt 0:02:14]} 8. Na4
{[%emt 0:07:46]} cxd4 {[%emt 0:00:41]} 9. exd4 {[%emt 0:01:42]} Bd6 {[%emt 0:
02:35]} 10. Bg5 {[%emt 0:13:05]} h6 {[%emt 0:00:10]} 11. Bh4 {[%emt 0:00:33]}
Be7 {[%emt 0:00:07]} 12. Nc3 {[%emt 0:01:28]} d5 {[%emt 0:06:27]} 13. Bxf6 {
[%emt 0:02:41]} Bxf6 {[%emt 0:00:22]} 14. cxd5 {[%emt 0:00:04]} exd5 {[%emt 0:
06:32]} 15. Ne5 {[%emt 0:03:31]} Nc6 {[%emt 0:07:17]} 16. Nxc6 {[%emt 0:09:14]}
Bxc6 {[%emt 0:00:02]} 17. Bb5 {[%emt 0:17:55]} Bxb5 {[%emt 0:08:44]} 18. Nxb5 {
[%emt 0:00:06]} Qd7 {[%emt 0:00:03]} 19. Nc3 {[%emt 0:00:22]} Rac8 {[%emt 0:07:
06]} 20. Qd3 {[%emt 0:18:26]} Rc4 {[%emt 0:05:10]} 21. Ne2 {[%emt 0:01:10]}
Rfc8 {[%emt 0:03:06]} 22. b3 {[%emt 0:02:53]} Rc2 {[%emt 0:01:38]} 23. Rfc1 {
[%emt 0:00:19]} Bxd4 {[%emt 0:06:06]} 24. Rxc2 {[%emt 0:03:36]} Bxa1 {[%emt 0:
00:10]} 25. Rxc8+ {[%emt 0:01:13]} Qxc8 {[%emt 0:00:01]} 26. g3 {[%emt 0:01:31]
} Qc5 {[%emt 0:05:21]} 27. Nf4 {[%emt 0:01:36]} Bd4 {[%emt 0:12:12]} 28. Qf3 {
[%emt 0:05:03]} Qc2 {[%emt 0:01:36]} 29. Qe2 {[%emt 0:04:53]} Qxe2 {[%emt 0:00:
56]} 30. Nxe2 {[%emt 0:00:05]} Be5 {[%emt 0:00:27]} 31. f3 {[%emt 0:04:33]} Kf8
{[%emt 0:00:15]} 32. Nc1 {[%emt 0:00:21]} Ke7 {[%emt 0:00:16]} 33. Nd3 {
[%emt 0:00:04]} Bd4+ {[%emt 0:00:19]} 34. Kg2 {[%emt 0:00:04]} Ke6 {[%emt 0:00:
26]} 35. Kf1 {[%emt 0:01:50]} Be3 {[%emt 0:00:08]} 36. Kg2 {[%emt 0:00:13]} d4
{[%emt 0:02:19]} 37. Kf1 {[%emt 0:00:18]} Kf5 {[%emt 0:01:20]} 38. Kg2 {
[%emt 0:00:27]} h5 {[%emt 0:00:51]} 39. h3 {[%emt 0:00:08]} g5 {[%emt 0:02:43]}
40. g4+ {[%emt 0:00:00]} hxg4 {[%emt 0:00:00]} 41. hxg4+ {[%emt 0:00:31]} Ke6 {
[%emt 0:00:16]} 42. Kf1 {[%emt 0:00:31]} f5 {[%emt 0:02:46]} 43. gxf5+ {
[%emt 0:00:10]} Kxf5 {[%emt 0:00:01]} 44. Ke2 {[%emt 0:00:09]} g4 {[%emt 0:00:
57]} 45. fxg4+ {[%emt 0:00:03]} Kxg4 {[%emt 0:00:01]} 46. Ne5+ {[%emt 0:00:08]}
Kf5 {[%emt 0:00:14]} 47. Nd3 {[%emt 0:00:03]} Ke4 {[%emt 0:00:03]} 48. Ne1 {
[%emt 0:00:08]} Bg5 {[%emt 0:00:11]} 49. Nd3 {[%emt 0:00:06]} Be3 {[%emt 0:00:
21]} 50. a4 {[%emt 0:01:20]} Bh6 {[%emt 0:01:33]} 51. Nf2+ {[%emt 0:00:06]} Kd5
{[%emt 0:00:02]} 52. Nd3 {[%emt 0:00:29]} Be3 {[%emt 0:00:55]} 53. Kf3 {
[%emt 0:00:19] Ke5 Ke4+} 1/2-1/2